bitfinex/quotes_BTCUSD_20220307
["timestamp","ask_amount","ask_price","bid_price","bid_amount"]
[1646660527252,0.35816753,38983.0,38982.0,3.5e-07]
[1646660527696,0.55796753,38983.0,38982.0,3.5e-07]
[1646660527902,0.55796753,38983.0,38963.0,0.2499999]
[1646660527903,0.395512,38979.0,38963.0,0.2499999]
[1646660528101,0.128367,38972.0,38963.0,0.2499999]
[1646660528297,0.25830078,38966.0,38963.0,0.2499999]
[1646660528696,0.25830078,38966.0,38953.0,0.3464472]
[1646660528697,0.21687381,38964.0,38955.0,0.3592772]
[1646660529099,0.21687381,38964.0,38963.0,0.00038591]
[1646660529100,0.05,38964.0,38963.0,0.00038591]
[1646660529302,0.164187,38966.0,38964.0,0.02802876]
[1646660529303,0.05,38966.0,38964.0,0.02802876]
[1646660529699,0.0473,38971.0,38964.0,0.02802876]
[1646660530098,0.064173,38967.0,38964.0,0.02802876]
[1646660530298,0.064173,38967.0,38966.0,0.00038589]
[1646660530504,0.21054797,38967.0,38966.0,0.00038589]
[1646660531364,0.21054797,38967.0,38965.0,0.0003859]
[1646660531566,0.40833407,38967.0,38965.0,0.0003859]
[1646660531765,0.40833407,38967.0,38965.0,5.9e-06]
[1646660532164,0.40751473,38966.0,38954.0,0.20602862]
[1646660532370,0.40751473,38966.0,38951.0,8.871e-05]
[1646660532371,0.21747431,38956.0,38953.0,0.21885862]
[1646660532569,0.06420055,38962.0,38953.0,0.01283]
[1646660532766,0.05,38956.0,38953.0,0.01283]
[1646660532965,0.05,38956.0,38952.0,0.21884862]
[1646660533169,0.3964472,38959.0,38952.0,0.21884862]
[1646660533368,0.05,38959.0,38952.0,0.01282]
[1646660533766,0.3464472,38958.0,38951.0,0.30601733]
[1646660533968,0.05,38959.0,38954.0,0.00037333]
[1646660534168,0.05,38958.0,38954.0,0.00037333]
[1646660534366,0.05,38959.0,38954.0,0.00037333]
[1646660534868,0.05,38959.0,38952.0,0.31400822]
[1646660535095,0.05,38959.0,38955.0,0.00037333]
[1646660535296,0.05,38962.0,38955.0,0.00037333]
[1646660535700,0.21146043,38965.0,38955.0,0.00037333]
[1646660535701,0.05,38964.0,38955.0,0.00037333]
[1646660535898,0.064191,38960.0,38955.0,0.00037333]
[1646660536096,0.064191,38960.0,38952.0,0.21410822]
[1646660536297,0.064191,38960.0,38951.0,8.871e-05]
[1646660536298,0.064191,38960.0,38958.0,0.0003733]
[1646660536500,0.18642898,38959.0,38958.0,0.0003733]
[1646660536699,0.28642898,38959.0,38958.0,0.0003733]
[1646660537302,0.28642898,38959.0,38952.0,0.34255888]
[1646660537303,0.28642898,38959.0,38952.0,0.064191]
[1646660537499,0.28642898,38959.0,38957.0,0.0003615]
[1646660537901,0.35062538,38959.0,38957.0,0.0003615]
[1646660538303,0.35062538,38959.0,38957.0,1.5e-06]
[1646660538502,0.12527453,38958.0,38951.0,8.871e-05]
[1646660538744,0.06106753,38956.0,38951.0,8.871e-05]
[1646660539045,0.1706021,38952.0,38951.0,8.871e-05]
[1646660539348,0.2206021,38952.0,38951.0,8.871e-05]
[1646660540544,0.05,38952.0,38951.0,8.871e-05]
[1646660540745,0.05,38955.0,38952.0,0.02408085]
[1646660540947,0.04944101,38967.0,38952.0,0.02408085]
[1646660541146,0.39199989,38967.0,38952.0,0.02408085]
[1646660541351,0.00110279,38959.0,38952.0,0.02408085]
[1646660541547,0.00110279,38959.0,38957.0,0.18930888]
[1646660541744,0.00110279,38959.0,38958.0,0.12880647]
[1646660542149,0.00110279,38959.0,38958.0,0.56783894]
[1646660542342,0.00110279,38959.0,38958.0,1.59149048]
[1646660542601,0.00110279,38959.0,38958.0,0.77931494]
[1646660542797,0.00110279,38959.0,38958.0,0.97193755]
[1646660542997,0.00090586,38972.0,38958.0,0.42193755]
[1646660542998,0.19335333,38967.0,38958.0,0.42193755]
[1646660543198,0.19335333,38967.0,38958.0,0.13623247]
[1646660543399,0.19335333,38967.0,38956.0,0.128352]
[1646660543603,0.19335333,38967.0,38958.0,0.064184]
[1646660543998,0.16407901,38968.0,38955.0,0.12834]
[1646660543999,0.16980094,38961.0,38955.0,0.12834]
[1646660544199,0.16058555,38959.0,38955.0,0.12834]
[1646660544403,0.34255888,38960.0,38952.0,0.02408085]
[1646660544600,0.26512298,38960.0,38952.0,0.02408085]
[1646660544901,0.21980094,38961.0,38955.0,0.00036456]
[1646660545103,0.0999,38968.0,38960.0,0.7897]
[1646660545300,0.0999,38968.0,38962.0,0.08893247]
[1646660545501,0.0999,38968.0,38966.0,0.0999]
[1646660545898,0.27844084,38967.0,38958.0,0.34255888]
[1646660546104,0.21234474,38961.0,38955.0,0.17602158]
[1646660546358,0.26758614,38961.0,38955.0,0.12872158]
[1646660546757,0.31758614,38961.0,38955.0,0.12872158]
[1646660547159,0.31758614,38961.0,38959.0,0.0999]
[1646660547360,0.15681761,38961.0,38959.0,0.0999]
[1646660547559,0.05,38961.0,38959.0,0.0999]
[1646660547959,0.06418727,38964.0,38959.0,0.0999]
[1646660548161,0.523905,38963.0,38955.0,0.00036456]
[1646660548360,0.523905,38963.0,38952.0,0.02408085]
[1646660548361,0.1664156,38960.0,38952.0,0.02408085]
[1646660548561,0.2164156,38960.0,38957.0,0.0999]
[1646660548763,0.064199,38959.0,38957.0,0.0999]
[1646660548960,0.06419723,38958.0,38957.0,0.0999]
[1646660549162,0.88428133,38958.0,38957.0,0.0999]
[1646660549362,0.93428133,38958.0,38957.0,0.0999]
[1646660549560,0.93428133,38958.0,38952.0,0.02408085]
[1646660549761,0.53876933,38958.0,38952.0,0.02408085]
[1646660550017,0.53876933,38958.0,38953.0,0.064205]
[1646660550914,0.53006933,38958.0,38953.0,0.064205]
[1646660551116,0.10549723,38958.0,38954.0,0.22472282]
[1646660551319,0.10549723,38958.0,38954.0,0.35311082]
[1646660551517,0.10549723,38958.0,38954.0,0.128388]
[1646660551716,0.07388753,38975.0,38955.0,0.42956027]
[1646660551918,0.25366653,38975.0,38955.0,0.42956027]
[1646660552116,0.26509062,38970.0,38955.0,0.62936027]
[1646660552320,0.17186974,38968.0,38955.0,0.72926027]
[1646660552519,0.17186974,38968.0,38958.0,0.31602213]
[1646660552520,0.35667348,38968.0,38958.0,0.31602213]
[1646660552718,0.17186974,38968.0,38959.0,0.128366]
[1646660552918,0.16686974,38968.0,38959.0,0.064184]
[1646660553120,0.06418275,38965.0,38959.0,0.064184]
[1646660553518,0.16686974,38968.0,38959.0,0.064184]
[1646660553763,0.16686974,38968.0,38959.0,0.4048118]
[1646660553967,0.0009053,38972.0,38961.0,0.15311147]
[1646660554164,0.06417851,38971.0,38963.0,0.064179]
[1646660554366,0.20865424,38982.0,38964.0,0.3406278]
[1646660554367,0.01282,38982.0,38964.0,0.3406278]
[1646660554565,6.242e-05,38983.0,38964.0,0.47686027]
[1646660554764,0.00090599,38974.0,38964.0,0.47686027]
[1646660554962,0.00090599,38974.0,38971.0,0.27074742]
[1646660555164,0.00090599,38974.0,38973.0,0.08893247]
[1646660555365,0.00090599,38974.0,38973.0,0.42956027]
[1646660555566,0.27955494,38980.0,38973.0,0.42956027]
[1646660555762,0.06421426,38983.0,38973.0,0.42956027]
[1646660555962,0.06421426,38983.0,38973.0,0.08893247]
[1646660555963,0.00022652,38977.0,38973.0,0.08893247]
[1646660556367,0.00090599,38981.0,38974.0,0.128313]
[1646660556368,0.00065913,38981.0,38974.0,0.128313]
[1646660556571,0.00065913,38981.0,38974.0,0.09144765]
[1646660556768,0.064175,38979.0,38969.0,0.2997]
[1646660557066,0.25452515,38974.0,38966.0,0.13893247]
[1646660557265,0.26508634,38977.0,38966.0,0.05]
[1646660557500,0.26508634,38977.0,38971.0,0.08893247]
[1646660557501,0.11415849,38977.0,38971.0,0.08893247]
[1646660558300,0.06415849,38977.0,38975.0,0.08893247]
[1646660558504,0.0001302,38983.0,38975.0,0.30921577]
[1646660558701,0.0001302,38983.0,38978.0,0.08893247]
[1646660558903,0.0001302,38983.0,38971.0,0.1]
[1646660559107,0.0001302,38983.0,38981.0,0.1998]
[1646660559305,6.242e-05,38983.0,38981.0,0.1998]
[1646660559502,0.0001302,38983.0,38980.0,0.064142]
[1646660559704,0.44326229,38982.0,38979.0,0.128322]
[1646660559907,0.73480864,38981.0,38976.0,0.0999]
[1646660560104,0.45968743,38980.0,38976.0,0.0999]
[1646660560307,0.33929664,38979.0,38976.0,0.0999]
[1646660560503,0.38929664,38979.0,38976.0,0.0999]
[1646660560704,0.12834993,38978.0,38976.0,0.0999]
[1646660560905,0.33929664,38977.0,38976.0,0.0999]
[1646660561103,0.05,38977.0,38976.0,0.0999]
[1646660561753,0.04931648,38977.0,38976.0,0.0999]
[1646660562149,0.04931648,38977.0,38974.0,0.064172]
[1646660562354,0.06416866,38976.0,38974.0,0.064172]
[1646660562549,0.06416866,38976.0,38974.0,0.2606989]
[1646660563348,0.06416866,38976.0,38974.0,0.064172]
[1646660564253,0.04931648,38977.0,38974.0,0.064172]
[1646660564650,0.11415493,38979.0,38974.0,0.064172]
[1646660565121,0.11415493,38979.0,38975.0,0.18937526]
[1646660565520,0.11415493,38979.0,38974.0,0.064172]
[1646660565724,0.11415493,38979.0,38974.0,0.35290447]
[1646660565921,0.05,38979.0,38978.0,0.02890647]
[1646660566122,0.00028774,38983.0,38979.0,0.064145]
[1646660566320,0.00028774,38983.0,38981.0,0.08893247]
[1646660566519,0.00337935,38988.0,38984.0,0.17031074]
[1646660566722,0.064137,38997.0,38986.0,0.08893247]
[1646660566929,0.16303772,38994.0,38986.0,0.08893247]
[1646660567125,0.00428098,38989.0,38986.0,0.08893247]
[1646660567325,0.26129664,39002.0,38988.0,0.08893247]
[1646660567525,0.26129664,39002.0,38992.0,0.08893247]
[1646660567526,0.0011,39002.0,38992.0,0.08893247]
[1646660567724,0.0011,39002.0,38993.0,0.33929664]
[1646660567926,0.0011,39002.0,38996.0,0.08893247]
[1646660568321,0.0011,39002.0,38999.0,0.02890647]
[1646660568322,0.15419731,39001.0,38999.0,0.02890647]
[1646660568852,25.63367101,39000.0,38999.0,0.07890647]
[1646660569060,25.63367101,39000.0,38996.0,0.064115]
[1646660569061,25.63367101,39000.0,38985.0,0.02481847]
[1646660569062,1.25,38999.0,38985.0,0.02481847]
[1646660569257,1.25,38999.0,38981.0,0.35717336]
[1646660569258,0.47190254,38996.0,38981.0,0.1]
[1646660569459,0.47190254,38996.0,38980.0,0.2499999]
[1646660569460,0.395512,38994.0,38980.0,0.2499999]
[1646660569656,0.12518153,38988.0,38980.0,0.2499999]
[1646660569856,0.12518153,38988.0,38979.0,0.0999]
[1646660569857,0.38659664,38987.0,38979.0,0.0999]
[1646660570053,0.38659664,38987.0,38975.0,0.2499999]
[1646660570054,0.064167,38985.0,38975.0,0.2499999]
[1646660570256,0.05,38981.0,38975.0,0.2499999]
[1646660570453,0.064167,38985.0,38975.0,0.2499999]
[1646660570655,0.114167,38985.0,38979.0,0.128332]
[1646660570854,0.19258143,38982.0,38979.0,0.128332]
[1646660571056,0.31021741,38985.0,38979.0,0.128332]
[1646660571256,0.17831324,38982.0,38979.0,0.128332]
[1646660571855,0.05,38982.0,38979.0,0.128332]
[1646660572059,0.29605041,38985.0,38979.0,0.12872404]
[1646660572255,0.0641503,38984.0,38979.0,0.12872404]
[1646660572524,0.0641503,38984.0,38980.0,0.05]
[1646660572923,0.0641503,38984.0,38981.0,0.064154]
[1646660573124,0.0641503,38984.0,38981.0,0.260754]
[1646660574122,0.0641503,38984.0,38981.0,0.255754]
[1646660574323,0.0641503,38984.0,38982.0,0.1965]
[1646660575323,0.05,38985.0,38982.0,0.1965]
[1646660575524,0.06413118,38995.0,38984.0,0.02481847]
[1646660575724,0.58459664,38999.0,38986.0,0.064139]
[1646660575725,0.26019664,38999.0,38986.0,0.064139]
[1646660575925,0.00021985,38991.0,38987.0,0.02481847]
[1646660576122,0.00021985,38991.0,38986.0,0.25897961]
[1646660576350,0.00021985,38991.0,38989.0,0.1962]
[1646660576749,0.27629154,38992.0,38989.0,0.2462]
[1646660576949,0.27651142,38992.0,38989.0,0.2462]
[1646660577651,0.3313709,38991.0,38989.0,0.2462]
[1646660577851,0.3313709,38991.0,38989.0,0.064141]
[1646660578056,0.12829534,38990.0,38989.0,0.064141]
[1646660578251,0.45966624,38990.0,38989.0,0.064141]
[1646660578451,0.50966624,38990.0,38989.0,0.064141]
[1646660578652,0.17829534,38990.0,38989.0,0.064141]
[1646660579456,0.00021988,38991.0,38989.0,0.114141]
[1646660580005,25.38113757,39000.0,38990.0,0.38201937]
[1646660580214,25.38113757,39000.0,38994.0,0.02453899]
[1646660580407,25.38113757,39000.0,38995.0,0.14]
[1646660580604,0.08721754,38996.0,38995.0,0.9213709]
[1646660580905,0.08721754,38996.0,38995.0,0.75326409]
[1646660581101,25.08370211,39000.0,38995.0,0.75326409]
[1646660581302,25.08370211,39000.0,38999.0,0.14]
[1646660581503,25.08370211,39000.0,38999.0,0.26443899]
[1646660581702,24.69906411,39000.0,38999.0,0.31443899]
[1646660581905,24.69906411,39000.0,38999.0,0.37855099]
[1646660582102,24.69906411,39000.0,38999.0,0.23855099]
[1646660582303,24.31441611,39000.0,38999.0,0.23855099]
[1646660582702,23.92975811,39000.0,38999.0,0.23855099]
[1646660582904,23.92975811,39000.0,38999.0,1.02584743]
[1646660583103,23.92975811,39000.0,38999.0,0.68855099]
[1646660583302,23.54510811,39000.0,38999.0,0.82855099]
[1646660583505,23.54510811,39000.0,38999.0,1.61825099]
[1646660583746,23.54510811,39000.0,38999.0,1.6385416]
[1646660583949,23.54510811,39000.0,38999.0,0.68855099]
[1646660584151,23.54510811,39000.0,38999.0,0.71438099]
[1646660584552,23.54510811,39000.0,38999.0,0.85438099]
[1646660584749,23.54510811,39000.0,38997.0,0.33729644]
[1646660584950,23.36030811,39000.0,38999.0,0.23146636]
[1646660585154,23.36030811,39000.0,38999.0,1.19566162]
[1646660585451,23.36052773,39000.0,38999.0,0.86619308]
[1646660585649,23.35552773,39000.0,38999.0,0.91349308]
[1646660585851,23.35570773,39000.0,38999.0,1.30707362]
[1646660586053,22.97118173,39000.0,38999.0,1.55707362]
[1646660586354,21.52308711,39000.0,38999.0,1.27760508]
[1646660586551,21.13857011,39000.0,38999.0,1.37760508]
[1646660586749,21.13857011,39000.0,38999.0,1.59575424]
[1646660586951,20.75403311,39000.0,38999.0,0.56207508]
[1646660587153,20.75403311,39000.0,38999.0,0.31207508]
[1646660587354,20.75403311,39000.0,38999.0,1.22750508]
[1646660587604,20.75403311,39000.0,38999.0,0.43780508]
[1646660587809,20.75403311,39000.0,38999.0,0.68780508]
[1646660588010,20.75403311,39000.0,38999.0,1.32750508]
[1646660588209,20.75403311,39000.0,38999.0,0.34786308]
[1646660588411,20.75403311,39000.0,38999.0,0.24786308]
[1646660588606,0.11169116,38998.0,38994.0,0.292349]
[1646660588816,0.11169116,38998.0,38994.0,0.192349]
[1646660589006,0.11169116,38998.0,38997.0,0.08523179]
[1646660589207,0.55013344,38998.0,38997.0,0.08523179]
[1646660589406,0.32335688,38998.0,38997.0,0.08523179]
[1646660590606,0.60874701,38998.0,38997.0,0.08523179]
[1646660591253,0.16169116,38998.0,38997.0,0.2934565]
[1646660591458,0.16169116,38998.0,38997.0,0.81553]
[1646660591459,0.11169116,38998.0,38997.0,0.81553]
[1646660591656,0.11169116,38998.0,38997.0,0.13523069]
[1646660591857,0.11169116,38998.0,38997.0,0.13494881]
[1646660592656,0.11169116,38998.0,38997.0,0.19854881]
[1646660592858,0.11169116,38998.0,38997.0,0.14854881]
[1646660593061,0.11169116,38998.0,38997.0,8.81e-06]
[1646660593259,0.44811628,38998.0,38986.0,0.1999]
[1646660593460,0.11169116,38998.0,38986.0,0.0999]
[1646660593660,0.11169116,38998.0,38993.0,0.064127]
[1646660593661,0.2934519,38996.0,38993.0,0.064127]
[1646660593960,0.15825162,38994.0,38993.0,0.064127]
[1646660594158,0.15847153,38994.0,38993.0,0.00438811]
[1646660595009,0.15825162,38994.0,38989.0,0.192383]
[1646660595202,0.15825162,38994.0,38992.0,0.1998]
[1646660595804,0.06100058,38993.0,38992.0,0.1998]
[1646660596105,0.15825162,38994.0,38992.0,0.1998]
[1646660597407,0.15825162,38994.0,38986.0,0.192394]
[1646660597605,0.15825162,38994.0,38987.0,0.20018619]
[1646660598111,0.39535464,38988.0,38987.0,0.20018619]
[1646660598303,0.39535464,38988.0,38987.0,0.00038619]
[1646660598304,0.1719279,38988.0,38987.0,0.00038619]
[1646660598505,0.1719279,38988.0,38984.0,0.064141]
[1646660598769,0.1719279,38988.0,38979.0,0.1998]
[1646660598970,0.11415379,38986.0,38979.0,0.1998]
[1646660599174,0.11415379,38986.0,38983.0,0.00438811]
[1646660599371,0.11415379,38986.0,38985.0,0.00438811]
[1646660599772,0.40752278,38986.0,38985.0,0.00438811]
[1646660599971,0.11415379,38986.0,38985.0,0.00438811]
[1646660600571,0.11415379,38986.0,38984.0,3.56e-06]
[1646660600778,0.128335,38983.0,38971.0,0.1998]
[1646660600977,0.25997237,38975.0,38971.0,0.1998]
[1646660601174,0.35727237,38975.0,38971.0,0.1998]
[1646660601371,0.42144437,38975.0,38971.0,0.1998]
[1646660601571,0.161472,38975.0,38971.0,0.1998]
[1646660601771,0.161472,38975.0,38967.0,0.064164]
[1646660601970,0.161472,38975.0,38965.0,0.128337]
[1646660601971,0.16146758,38975.0,38965.0,0.128337]
[1646660602173,0.16146758,38975.0,38972.0,0.1998]
[1646660602605,0.25745171,38974.0,38972.0,0.1998]
[1646660603003,0.44664963,38974.0,38972.0,0.1998]
[1646660603606,0.44664963,38974.0,38971.0,7.5e-07]
[1646660603607,0.33802279,38973.0,38971.0,7.5e-07]
[1646660603806,0.0473,38973.0,38971.0,7.5e-07]
[1646660604406,0.04391981,38973.0,38971.0,7.5e-07]
[1646660604711,0.17834158,38975.0,38969.0,0.128331]
[1646660604712,0.05,38975.0,38969.0,0.128331]
[1646660604905,0.05,38975.0,38970.0,0.33075536]
[1646660605108,0.05,38975.0,38969.0,0.178331]
[1646660605505,0.05,38975.0,38971.0,0.064166]
[1646660605705,0.05,38975.0,38973.0,0.1998]
[1646660606563,0.995512,38974.0,38971.0,0.064166]
[1646660606767,0.995512,38974.0,38957.0,0.0999]
[1646660606768,0.33075536,38973.0,38961.0,0.128373]
[1646660606964,0.064188,38970.0,38961.0,0.128373]
[1646660607263,0.05,38967.0,38961.0,0.128373]
[1646660608262,0.05,38967.0,38961.0,0.228273]
[1646660608463,0.05,38967.0,38962.0,0.00039684]
[1646660608668,0.05,38967.0,38962.0,0.06457584]
[1646660609066,0.05,38967.0,38962.0,0.11457584]
[1646660609264,0.05022155,38986.0,38964.0,0.02583]
[1646660609265,0.09752155,38986.0,38964.0,0.02583]
[1646660609465,0.09752155,38986.0,38965.0,0.0999]
[1646660609466,0.05,38981.0,38965.0,0.0999]
[1646660609666,0.05,38981.0,38968.0,0.128321]
[1646660609864,0.05,38981.0,38971.0,0.064157]
[1646660609865,0.21910869,38978.0,38971.0,0.064157]
[1646660610102,0.05,38981.0,38972.0,0.33109872]
[1646660610302,0.05,38981.0,38972.0,0.05]
[1646660610701,0.05,38981.0,38974.0,0.06407034]
[1646660610903,0.05,38981.0,38975.0,0.33109872]
[1646660611105,0.05022162,38986.0,38979.0,0.14]
[1646660611106,0.05,38984.0,38979.0,0.14]
[1646660611309,0.05,38984.0,38980.0,0.192402]
[1646660611505,0.05,38984.0,38981.0,0.128283]
[1646660611701,0.05,38984.0,38981.0,0.328183]
[1646660612103,0.05,38984.0,38981.0,0.55233313]
[1646660612302,0.05,38984.0,38982.0,0.064134]
[1646660613604,0.05,38984.0,38982.0,0.128273]
[1646660614449,0.05,38984.0,38982.0,0.228173]
[1646660614651,0.02501613,38984.0,38982.0,0.128273]
[1646660615051,0.02501613,38984.0,38982.0,0.328073]
[1646660616250,0.02501613,38984.0,38982.0,0.477973]
[1646660616454,0.02501613,38984.0,38982.0,0.413834]
[1646660616652,0.02501613,38984.0,38982.0,0.363834]
[1646660617906,0.02501613,38984.0,38982.0,0.427976]
[1646660618708,0.05,38992.0,38986.0,0.128265]
[1646660618906,0.05,38992.0,38989.0,0.064136]
[1646660619108,0.20949158,38995.0,38990.0,0.1998]
[1646660619109,0.25949158,38995.0,38990.0,0.1998]
[1646660619307,0.13663971,38989.0,38987.0,0.128272]
[1646660619812,17.40492582,39000.0,38993.0,0.1552]
[1646660620008,17.40492582,39000.0,38997.0,0.15]
[1646660620009,14.63677382,39000.0,38997.0,0.15]
[1646660620212,14.63677382,39000.0,38999.0,0.9397]
[1646660620213,13.63727382,39000.0,38999.0,0.9397]
[1646660620407,7.99770482,39000.0,38999.0,1.58073464]
[1646660620610,5.25857647,39000.0,38999.0,1.53073464]
[1646660620810,4.25937647,39000.0,38999.0,1.44277809]
[1646660621012,4.25937647,39000.0,38999.0,0.111389]
[1646660621260,4.25937647,39000.0,38999.0,0.37520464]
[1646660621454,4.25937647,39000.0,38999.0,0.0473]
[1646660621857,4.25937647,39000.0,38999.0,0.20917589]
[1646660622056,4.25937647,39000.0,38999.0,1.26710189]
[1646660622253,3.87475147,39000.0,38999.0,1.31710189]
[1646660622455,0.0011,39003.0,39000.0,1.17583]
[1646660622657,0.0011,39003.0,39002.0,0.9282277]
[1646660622854,0.0011,39011.0,39002.0,1.1755277]
[1646660623056,0.17465742,39027.0,39006.0,0.45]
[1646660623057,0.0022,39021.0,39006.0,0.45]
[1646660623256,0.1862,39024.0,39015.0,0.19224]
[1646660623257,0.14785957,39024.0,39015.0,0.19224]
[1646660623459,0.14785957,39024.0,39019.0,0.14]
[1646660623654,0.14785957,39024.0,39023.0,0.14]
[1646660623655,0.09285957,39024.0,39023.0,0.14]
[1646660623855,0.26194208,39026.0,39023.0,0.14]
[1646660623856,0.25590165,39026.0,39023.0,0.14]
[1646660624057,0.04179523,39026.0,39016.0,1.16760464]
[1646660624261,0.04179523,39026.0,39021.0,0.324952]
[1646660624456,0.04179523,39026.0,39021.0,0.374952]
[1646660624657,0.04179523,39026.0,39021.0,0.05]
[1646660625107,0.19212002,39022.0,39016.0,0.32790464]
[1646660625305,0.19212002,39022.0,39020.0,0.14]
[1646660625506,0.19212002,39022.0,39020.0,0.1968]
[1646660625706,0.00022027,39025.0,39020.0,0.260884]
[1646660626107,0.00022027,39025.0,39021.0,0.7897]
[1646660626308,0.04179523,39026.0,39021.0,0.37643322]
[1646660626508,0.19481321,39022.0,39020.0,0.2468]
[1646660626706,0.00018,39022.0,39020.0,0.1968]
[1646660627111,0.395512,39021.0,39020.0,0.1968]
[1646660627305,0.00018,39022.0,39012.0,0.0473]
[1646660627509,0.05,39021.0,39012.0,0.0473]
[1646660627707,0.20154792,39019.0,39013.0,0.1968]
[1646660627906,0.20154792,39019.0,39014.0,0.0473]
[1646660628106,0.00022027,39022.0,39014.0,0.0473]
[1646660628308,0.15638456,39028.0,39014.0,0.48782822]
[1646660628309,0.06827056,39028.0,39014.0,0.48782822]
[1646660628506,0.06827056,39028.0,39014.0,0.50063822]
[1646660628772,0.114086,39028.0,39014.0,0.55063822]
[1646660628972,0.114086,39028.0,39014.0,0.50333822]
[1646660629172,0.22847439,39024.0,39016.0,0.1968]
[1646660629373,0.064086,39028.0,39018.0,0.064087]
[1646660629374,0.05,39028.0,39018.0,0.064087]
[1646660629574,0.16416527,39024.0,39018.0,0.064087]
[1646660629773,0.16416527,39024.0,39016.0,0.1968]
[1646660629974,0.0033,39030.0,39016.0,0.1968]
[1646660630175,0.21642427,39027.0,39017.0,0.42643322]
[1646660630378,0.00021944,39024.0,39017.0,0.05]
[1646660630577,0.00195517,39024.0,39021.0,0.1968]
[1646660630791,0.05817813,39054.0,39028.0,0.2]
[1646660631004,0.04617538,39066.0,39028.0,0.2]
[1646660631005,0.01,39070.0,39053.0,1.48170427]
[1646660631185,0.01030991,39092.0,39069.0,1.75642427]
[1646660631186,0.31312887,39079.0,39069.0,1.75642427]
[1646660631381,0.00955287,39092.0,39078.0,2.76022708]
[1646660631382,1.47100175,39088.0,39078.0,2.76022708]
[1646660631577,1.47100175,39088.0,39087.0,0.5911]
[1646660631578,1.0,39088.0,39087.0,0.5911]
[1646660631777,0.00955287,39092.0,39087.0,0.5911]
[1646660631778,0.00955287,39092.0,39087.0,2.84094749]
[1646660631982,0.179741,39101.0,39091.0,0.23356559]
[1646660632180,0.179741,39101.0,39097.0,0.13247515]
[1646660632377,0.179741,39101.0,39100.0,0.14]
[1646660632614,0.179741,39101.0,39100.0,0.0973]
[1646660632817,0.179741,39101.0,39100.0,0.46873322]
[1646660633013,0.179741,39101.0,39099.0,0.111248]
[1646660633014,1.25,39100.0,39099.0,0.111248]
[1646660633312,1.25,39100.0,39096.0,4.7999]
[1646660633313,0.395512,39099.0,39096.0,1.88388508]
[1646660633512,0.02887292,39097.0,39096.0,1.88388508]
[1646660633715,0.02887292,39097.0,39096.0,1.88278508]
[1646660633913,0.18997327,39101.0,39096.0,1.84621876]
[1646660634117,0.01023227,39099.0,39096.0,1.84621876]
[1646660634314,0.01023227,39098.0,39096.0,1.84621876]
[1646660634818,0.23719334,39100.0,39097.0,0.5]
[1646660635015,0.03910519,39098.0,39096.0,1.84621876]
[1646660635219,0.395512,39097.0,39096.0,1.84621876]
[1646660635416,0.395512,39097.0,39096.0,1.22721876]
[1646660635616,0.395512,39097.0,39090.0,0.1999]
[1646660635916,0.01023227,39092.0,39090.0,0.1999]
[1646660636118,0.21733785,39098.0,39092.0,0.02046453]
[1646660636360,0.02887292,39095.0,39092.0,0.02046453]
[1646660636758,0.16954039,39094.0,39092.0,0.02055453]
[1646660636959,0.23037682,39097.0,39092.0,0.02055453]
[1646660636960,0.02887292,39097.0,39092.0,0.02055453]
[1646660637161,0.02887292,39099.0,39092.0,0.02055453]
[1646660637365,0.02887292,39097.0,39092.0,0.02055453]
[1646660637563,0.49544775,39107.0,39093.0,0.12112708]
[1646660637564,0.04544775,39107.0,39093.0,0.12112708]
[1646660637762,0.07907392,39120.0,39093.0,0.12112708]
[1646660637763,0.001001,39120.0,39102.0,0.22102708]
[1646660637964,0.16249468,39114.0,39105.0,0.01304218]
[1646660638160,0.001001,39120.0,39105.0,0.3894754]
[1646660638461,0.23789908,39124.0,39111.0,0.4998]
[1646660638462,0.02887292,39114.0,39111.0,0.4998]
[1646660638665,0.003921,39126.0,39091.0,1.79237194]
[1646660638666,0.41938492,39113.0,39091.0,1.79237194]
[1646660638864,0.02387292,39112.0,39095.0,0.37643322]
[1646660639066,0.02387292,39114.0,39095.0,0.37643322]
[1646660639263,0.07110383,39113.0,39096.0,0.01278]
[1646660639463,0.44855261,39111.0,39096.0,0.01278]
[1646660639665,0.0446,39129.0,39098.0,0.163857]
[1646660639867,0.0473,39128.0,39105.0,0.127883]
[1646660640144,0.0446,39129.0,39109.0,0.15]
[1646660640347,0.0446,39129.0,39105.0,0.127883]
[1646660640348,0.00368164,39111.0,39110.0,0.38920322]
[1646660640552,0.23043562,39125.0,39110.0,0.15777]
[1646660640743,0.23043562,39125.0,39116.0,0.19905695]
[1646660640944,0.23043562,39125.0,39106.0,0.06125012]
[1646660640945,0.1,39117.0,39106.0,0.06125012]
[1646660641145,0.2,39118.0,39106.0,0.06125012]
[1646660641146,0.395512,39110.0,39106.0,0.06125012]
[1646660641346,0.1897595,39109.0,39106.0,0.06125012]
[1646660641745,0.01277,39118.0,39106.0,0.06125012]
[1646660641948,0.1,39121.0,39107.0,0.37643322]
[1646660641949,0.395512,39120.0,39107.0,0.37643322]
[1646660642144,0.488512,39118.0,39103.0,0.01277]
[1646660642344,0.37643322,39119.0,39111.0,0.1998]
[1646660642546,0.093,39120.0,39103.0,0.01277]
[1646660642547,0.395512,39118.0,39103.0,0.01277]
[1646660642745,0.093,39114.0,39106.0,9e-05]
[1646660642947,0.15898591,39106.0,39097.0,0.063965]
[1646660643145,0.093,39110.0,39097.0,0.1252151]
[1646660643346,0.37643322,39113.0,39097.0,0.1252151]
[1646660643546,0.37643322,39116.0,39098.0,0.01278]
[1646660643757,0.20986392,39099.0,39098.0,0.01278]
[1646660643961,0.20986392,39099.0,39092.0,0.02046453]
[1646660643962,0.05146651,39097.0,39092.0,0.02046453]
[1646660644258,0.05146651,39097.0,39078.0,0.5]
[1646660644259,0.21357243,39084.0,39078.0,0.5]
[1646660644459,0.1990956,39085.0,39084.0,0.42714485]
[1646660644657,0.067,39085.0,39084.0,0.42714485]
[1646660644963,0.0473,39085.0,39084.0,0.42714485]
[1646660645160,0.02353,39086.0,39084.0,0.42714485]
[1646660645361,0.07083,39086.0,39084.0,0.42714485]
[1646660645560,0.0473,39086.0,39085.0,0.01278]
[1646660646358,0.59998679,39094.0,39085.0,0.01278]
[1646660646557,0.0473,39093.0,39085.0,0.06278]
[1646660646761,0.2,39107.0,39091.0,0.063971]
[1646660646762,0.2499999,39105.0,39091.0,0.063971]
[1646660646959,0.2499999,39105.0,39093.0,0.057]